[Event "Early-Titled-Tuesday-Blitz-March-26-2024"]
[Site "Chess.com"]
[Date "2024.03.26"]
[Round "1"]
[White "Irina_Baraeva"]
[Black "SAInt_666"]
[Result "0-1"]
[WhiteElo "2393"]
[BlackElo "2737"]
[TimeControl "180+1"]
[EndTime "8:06:57 PDT"]
[Termination "SAInt_666 won by resignation"]

1. d4 {[%clk 0:03:00.9]} 1... Nf6 {[%clk 0:02:58.4]} 2. c4 {[%clk 0:03:00.6]}
2... e6 {[%clk 0:02:57.8]} 3. Nf3 {[%clk 0:03:00.2]} 3... d5 {[%clk 0:02:57.9]}
4. Nc3 {[%clk 0:02:59.8]} 4... Bb4 {[%clk 0:02:58.2]} 5. Bg5 {[%clk 0:02:59.8]}
5... Nbd7 {[%clk 0:02:57.7]} 6. e3 {[%clk 0:02:59.6]} 6... c5 {[%clk 0:02:57.7]}
7. cxd5 {[%clk 0:02:59]} 7... exd5 {[%clk 0:02:58.6]} 8. Be2 {[%clk 0:02:57.5]}
8... c4 {[%clk 0:02:57.9]} 9. O-O {[%clk 0:02:56.9]} 9... Qa5 {[%clk 0:02:57.3]}
10. Qc2 {[%clk 0:02:52.1]} 10... O-O {[%clk 0:02:56]} 11. Bh4 {[%clk 0:02:44.7]}
11... Re8 {[%clk 0:02:54.2]} 12. a3 {[%clk 0:02:43.5]} 12... Bxc3 {[%clk
0:02:52.7]} 13. bxc3 {[%clk 0:02:43.6]} 13... Ne4 {[%clk 0:02:53.3]} 14. Rfc1
{[%clk 0:02:42.4]} 14... Nb6 {[%clk 0:02:52.9]} 15. Nd2 {[%clk 0:02:41]} 15...
Bf5 {[%clk 0:02:50.2]} 16. Nxe4 {[%clk 0:02:41]} 16... Bxe4 {[%clk 0:02:39.9]}
17. Qd1 {[%clk 0:02:33.5]} 17... Qa4 {[%clk 0:02:35.4]} 18. Qxa4 {[%clk
0:02:23.4]} 18... Nxa4 {[%clk 0:02:35.4]} 19. Bf3 {[%clk 0:02:23.9]} 19... Bxf3
{[%clk 0:02:27.1]} 20. gxf3 {[%clk 0:02:23.8]} 20... b5 {[%clk 0:02:27.6]} 21.
Rab1 {[%clk 0:02:23]} 21... a6 {[%clk 0:02:27.6]} 22. Bg3 {[%clk 0:02:19.7]}
22... f6 {[%clk 0:02:27.4]} 23. Rc2 {[%clk 0:02:16.2]} 23... Re6 {[%clk
0:02:25.2]} 24. Kf1 {[%clk 0:02:12.4]} 24... Kf7 {[%clk 0:02:25.1]} 25. Ke2
{[%clk 0:02:12.7]} 25... h5 {[%clk 0:02:21.9]} 26. h4 {[%clk 0:02:09.2]} 26...
Kg6 {[%clk 0:02:07.2]} 27. Kd2 {[%clk 0:02:07.5]} 27... Kf5 {[%clk 0:02:06.5]}
28. Rcc1 {[%clk 0:02:07.7]} 28... g6 {[%clk 0:01:56.9]} 29. Rg1 {[%clk
0:02:03.6]} 29... Ra7 {[%clk 0:01:52.8]} 30. Bf4 {[%clk 0:01:58.3]} 30... Rg7
{[%clk 0:01:50.7]} 31. Rg2 {[%clk 0:01:43]} 31... g5 {[%clk 0:01:48]} 32. Bb8
{[%clk 0:01:40.9]} 32... g4 {[%clk 0:01:47.3]} 33. fxg4+ {[%clk 0:01:40.4]}
33... Rxg4 {[%clk 0:01:45.8]} 34. Rbg1 {[%clk 0:01:35.6]} 34... Re8 {[%clk
0:01:44]} 35. Rxg4 {[%clk 0:01:35.1]} 35... hxg4 {[%clk 0:01:44.2]} 36. Bg3
{[%clk 0:01:33.5]} 36... Rh8 {[%clk 0:01:40.5]} 37. Rb1 {[%clk 0:01:31.9]} 37...
Ke4 {[%clk 0:01:38.6]} 38. Rc1 {[%clk 0:01:20.9]} 38... Nb2 {[%clk 0:01:36.3]}
39. Rb1 {[%clk 0:01:18.8]} 39... Na4 {[%clk 0:01:31.5]} 40. Rc1 {[%clk 0:01:14]}
40... Kf3 {[%clk 0:01:31.3]} 41. Rb1 {[%clk 0:01:13.1]} 41... f5 {[%clk
0:01:31.2]} 42. Rc1 {[%clk 0:01:11.7]} 42... Nb2 {[%clk 0:01:29.5]} 43. Rb1
{[%clk 0:01:12]} 43... Nd3 {[%clk 0:01:29.9]} 44. Rf1 {[%clk 0:01:11.5]} 44...
Rh7 {[%clk 0:01:22.3]} 45. Kd1 {[%clk 0:01:08.6]} 45... a5 {[%clk 0:01:13.4]}
46. Kd2 {[%clk 0:01:08.7]} 46... b4 {[%clk 0:00:59.6]} 47. axb4 {[%clk
0:01:08.4]} 47... axb4 {[%clk 0:01:00.5]} 48. cxb4 {[%clk 0:01:08.8]} 48... Nxb4
{[%clk 0:00:59.8]} 49. Rb1 {[%clk 0:01:06.9]} 49... Nd3 {[%clk 0:00:59.7]} 50.
Rb5 {[%clk 0:01:07]} 50... Rd7 {[%clk 0:00:55.1]} 51. h5 {[%clk 0:00:57.8]}
51... Nxf2 {[%clk 0:00:55.1]} 52. Bxf2 {[%clk 0:00:57.7]} 52... Kxf2 {[%clk
0:00:56]} 53. h6 {[%clk 0:00:58.6]} 53... g3 {[%clk 0:00:54.9]} 54. h7 {[%clk
0:00:59.3]} 54... Rxh7 {[%clk 0:00:52.5]} 55. Rxd5 {[%clk 0:01:00]} 55... Rf7
{[%clk 0:00:52.9]} 56. Rd6 {[%clk 0:00:57.5]} 56... g2 {[%clk 0:00:52]} 57. Rg6
{[%clk 0:00:56.9]} 57... g1=Q {[%clk 0:00:52.3]} 58. Rxg1 {[%clk 0:00:57.2]}
58... Kxg1 {[%clk 0:00:53.1]} 59. Kc3 {[%clk 0:00:57.9]} 59... Kf2 {[%clk
0:00:52.7]} 60. Kxc4 {[%clk 0:00:58.4]} 60... Kxe3 {[%clk 0:00:53.4]} 61. d5
{[%clk 0:00:59]} 61... f4 {[%clk 0:00:53.9]} 0-1

[Event "Early-Titled-Tuesday-Blitz-March-26-2024"]
[Site "Chess.com"]
[Date "2024.03.26"]
[Round "1"]
[White "vladislavkovalev"]
[Black "ilushka"]
[Result "0-1"]
[WhiteElo "2863"]
[BlackElo "2499"]
[TimeControl "180+1"]
[EndTime "8:07:02 PDT"]
[Termination "ilushka won by resignation"]

1. e4 {[%clk 0:03:00.9]} 1... e6 {[%clk 0:03:00]} 2. d4 {[%clk 0:03:00.4]} 2...
d5 {[%clk 0:03:00.1]} 3. exd5 {[%clk 0:03:00.6]} 3... exd5 {[%clk 0:03:01]} 4.
Nf3 {[%clk 0:03:01.3]} 4... Nc6 {[%clk 0:03:00.6]} 5. c4 {[%clk 0:02:59.7]} 5...
Bb4+ {[%clk 0:02:58.5]} 6. Nc3 {[%clk 0:02:59.8]} 6... Be6 {[%clk 0:02:54.8]} 7.
a3 {[%clk 0:02:29.3]} 7... Bxc3+ {[%clk 0:02:53.9]} 8. bxc3 {[%clk 0:02:30.2]}
8... dxc4 {[%clk 0:02:51.7]} 9. Rb1 {[%clk 0:02:28.1]} 9... Nge7 {[%clk
0:02:35.2]} 10. Rxb7 {[%clk 0:02:25.9]} 10... O-O {[%clk 0:02:35.1]} 11. Be2
{[%clk 0:02:24.5]} 11... Nd5 {[%clk 0:02:29.3]} 12. Bd2 {[%clk 0:02:17.2]} 12...
Nb6 {[%clk 0:02:29.1]} 13. Bf4 {[%clk 0:02:12.2]} 13... Nd5 {[%clk 0:02:00.6]}
14. Qd2 {[%clk 0:02:11.2]} 14... Na5 {[%clk 0:01:52.4]} 15. Bg5 {[%clk
0:01:16.1]} 15... f6 {[%clk 0:01:49.6]} 16. Rb5 {[%clk 0:01:16.7]} 16... c6
{[%clk 0:01:49.3]} 17. Rc5 {[%clk 0:01:08.1]} 17... Nb3 {[%clk 0:01:40.7]} 18.
Rxc6 {[%clk 0:00:56.5]} 18... Nxd2 {[%clk 0:01:40]} 19. Bxd2 {[%clk 0:00:57.4]}
19... Qd7 {[%clk 0:01:30.1]} 20. Rxc4 {[%clk 0:00:57.4]} 20... Rfc8 {[%clk
0:01:16.8]} 21. Rxc8+ {[%clk 0:00:57.7]} 21... Rxc8 {[%clk 0:01:17.5]} 22. c4
{[%clk 0:00:58.6]} 22... Nb6 {[%clk 0:01:16]} 23. d5 {[%clk 0:00:59.1]} 23...
Bf7 {[%clk 0:00:57.7]} 24. O-O {[%clk 0:00:54.8]} 24... Nxc4 {[%clk 0:00:57.6]}
25. Bb4 {[%clk 0:00:55.3]} 25... Bxd5 {[%clk 0:00:53.8]} 26. Rd1 {[%clk
0:00:55.7]} 26... Qf7 {[%clk 0:00:52.3]} 27. Nd4 {[%clk 0:00:54.8]} 27... Nb6
{[%clk 0:00:39.8]} 28. Nf5 {[%clk 0:00:55]} 28... Rd8 {[%clk 0:00:34.3]} 29.
Ne7+ {[%clk 0:00:31.3]} 29... Kh8 {[%clk 0:00:33.9]} 30. Bg4 {[%clk 0:00:24.6]}
30... g6 {[%clk 0:00:28.4]} 31. Bc5 {[%clk 0:00:20.6]} 31... h5 {[%clk
0:00:24.4]} 32. Bf3 {[%clk 0:00:20.2]} 32... Rd7 {[%clk 0:00:17.7]} 33. Bxb6
{[%clk 0:00:17.4]} 33... Qxe7 {[%clk 0:00:10]} 34. Bxd5 {[%clk 0:00:16.2]} 34...
Rxd5 {[%clk 0:00:08.5]} 0-1

[Event "Early-Titled-Tuesday-Blitz-March-26-2024"]
[Site "Chess.com"]
[Date "2024.03.26"]
[Round "1"]
[White "C_K_G"]
[Black "Sanyura"]
[Result "1-0"]
[WhiteElo "2239"]
[BlackElo "2591"]
[TimeControl "180+1"]
[EndTime "8:07:02 PDT"]
[Termination "C_K_G won by resignation"]

1. e4 {[%clk 0:03:00.9]} 1... c6 {[%clk 0:02:08]} 2. Nf3 {[%clk 0:02:58.9]} 2...
d5 {[%clk 0:02:07.9]} 3. Nc3 {[%clk 0:02:59.7]} 3... Bg4 {[%clk 0:02:07.6]} 4.
exd5 {[%clk 0:02:59.3]} 4... cxd5 {[%clk 0:02:07.6]} 5. Bb5+ {[%clk 0:02:59.5]}
5... Nc6 {[%clk 0:02:07.8]} 6. Ne5 {[%clk 0:02:54.9]} 6... Bxd1 {[%clk
0:01:45.3]} 7. Nxc6 {[%clk 0:02:54.6]} 7... Qb6 {[%clk 0:01:40.4]} 8. Nxd5
{[%clk 0:02:37.7]} 8... Qc5 {[%clk 0:01:15.5]} 9. Na5+ {[%clk 0:02:04.2]} 9...
Qxb5 {[%clk 0:01:01.2]} 10. Nc7+ {[%clk 0:02:04]} 10... Kd7 {[%clk 0:01:01.1]}
11. Nxb5 {[%clk 0:02:03.9]} 11... Bxc2 {[%clk 0:00:55.9]} 12. Nxb7 {[%clk
0:02:01.7]} 12... Rb8 {[%clk 0:00:47.9]} 13. Nc5+ {[%clk 0:02:01.6]} 13... Kc6
{[%clk 0:00:48]} 14. Nd4+ {[%clk 0:02:00.6]} 14... Kxc5 {[%clk 0:00:48]} 15.
Nxc2 {[%clk 0:02:01]} 15... e5 {[%clk 0:00:46.6]} 16. b3 {[%clk 0:01:54.2]}
16... Ne7 {[%clk 0:00:43.8]} 17. Bb2 {[%clk 0:01:54.2]} 17... Nc6 {[%clk
0:00:43]} 18. O-O {[%clk 0:01:51.3]} 18... Rd8 {[%clk 0:00:41.3]} 19. Bc3 {[%clk
0:01:48.7]} 19... Kb6 {[%clk 0:00:37.5]} 20. Rfe1 {[%clk 0:01:46.4]} 20... Bc5
{[%clk 0:00:36.5]} 21. Ne3 {[%clk 0:01:37.5]} 21... f6 {[%clk 0:00:35.5]} 22.
Kf1 {[%clk 0:01:33.5]} 22... Rd3 {[%clk 0:00:33.1]} 23. Nc4+ {[%clk 0:01:23.6]}
23... Kb7 {[%clk 0:00:33.4]} 24. Nb2 {[%clk 0:01:11.6]} 24... Rd5 {[%clk
0:00:31.8]} 25. Na4 {[%clk 0:01:10.4]} 25... Bd4 {[%clk 0:00:30.1]} 26. Rac1
{[%clk 0:01:06.3]} 26... Bxc3 {[%clk 0:00:27.9]} 27. dxc3 {[%clk 0:01:03.9]}
27... Rhd8 {[%clk 0:00:27.2]} 28. b4 {[%clk 0:00:59.8]} 28... Rd2 {[%clk
0:00:26.5]} 29. Nc5+ {[%clk 0:00:58.9]} 29... Kc8 {[%clk 0:00:26.2]} 30. Re2
{[%clk 0:00:57.5]} 30... R2d5 {[%clk 0:00:21]} 31. a4 {[%clk 0:00:56.2]} 31...
h5 {[%clk 0:00:18.5]} 32. Ke1 {[%clk 0:00:53.9]} 32... h4 {[%clk 0:00:18.3]} 33.
h3 {[%clk 0:00:53.5]} 33... Ne7 {[%clk 0:00:17]} 34. a5 {[%clk 0:00:51]} 34...
Ng6 {[%clk 0:00:17.3]} 35. Ne6 {[%clk 0:00:49.3]} 35... R8d7 {[%clk 0:00:17]}
36. c4 {[%clk 0:00:47.2]} 36... R5d6 {[%clk 0:00:17.2]} 37. Nc5 {[%clk
0:00:44.8]} 37... Nf4 {[%clk 0:00:15.6]} 38. Nxd7 {[%clk 0:00:41.4]} 38... Nd3+
{[%clk 0:00:16]} 39. Kd2 {[%clk 0:00:38]} 39... Nxb4+ {[%clk 0:00:15.6]} 40. Kc3
{[%clk 0:00:35.3]} 40... Na2+ {[%clk 0:00:15.1]} 41. Rxa2 {[%clk 0:00:34.5]} 1-0

[Event "Early-Titled-Tuesday-Blitz-March-26-2024"]
[Site "Chess.com"]
[Date "2024.03.26"]
[Round "1"]
[White "Igor_Lysyj"]
[Black "LLariMarc"]
[Result "1-0"]
[WhiteElo "2834"]
[BlackElo "2464"]
[TimeControl "180+1"]
[EndTime "8:07:03 PDT"]
[Termination "Igor_Lysyj won by resignation"]

1. d4 {[%clk 0:02:59.5]} 1... f5 {[%clk 0:02:56.6]} 2. Nf3 {[%clk 0:02:58.2]}
2... Nf6 {[%clk 0:02:56.1]} 3. g3 {[%clk 0:02:58.3]} 3... e6 {[%clk 0:02:56.3]}
4. Bg2 {[%clk 0:02:58.5]} 4... d5 {[%clk 0:02:54.3]} 5. Bf4 {[%clk 0:02:58]}
5... Bd6 {[%clk 0:02:52]} 6. e3 {[%clk 0:02:57.9]} 6... O-O {[%clk 0:02:51.9]}
7. O-O {[%clk 0:02:57.8]} 7... Nbd7 {[%clk 0:02:49.7]} 8. c4 {[%clk 0:02:57.5]}
8... Ne4 {[%clk 0:02:47.9]} 9. Qc2 {[%clk 0:02:52.1]} 9... c6 {[%clk 0:02:45.6]}
10. Nc3 {[%clk 0:02:42.8]} 10... Ndf6 {[%clk 0:02:44.8]} 11. c5 {[%clk
0:02:37.4]} 11... Bxf4 {[%clk 0:02:44.5]} 12. exf4 {[%clk 0:02:37.5]} 12... Bd7
{[%clk 0:02:42.8]} 13. b4 {[%clk 0:02:35.8]} 13... Be8 {[%clk 0:02:41.8]} 14.
Rfe1 {[%clk 0:02:32.1]} 14... h6 {[%clk 0:02:34.1]} 15. Ne5 {[%clk 0:02:25.5]}
15... Nd7 {[%clk 0:02:30.4]} 16. Nd3 {[%clk 0:02:23.8]} 16... g5 {[%clk
0:02:26.6]} 17. f3 {[%clk 0:02:19.6]} 17... Nxc3 {[%clk 0:02:25.7]} 18. Qxc3
{[%clk 0:02:19.7]} 18... Qf6 {[%clk 0:02:25.6]} 19. fxg5 {[%clk 0:02:15.9]}
19... hxg5 {[%clk 0:02:25.7]} 20. f4 {[%clk 0:02:16.5]} 20... g4 {[%clk
0:02:26.1]} 21. Re3 {[%clk 0:02:14.1]} 21... Bf7 {[%clk 0:02:25.2]} 22. Rae1
{[%clk 0:02:13.3]} 22... Kg7 {[%clk 0:02:25.8]} 23. Nf2 {[%clk 0:01:51.9]} 23...
Rh8 {[%clk 0:02:25]} 24. h4 {[%clk 0:01:51.9]} 24... gxh3 {[%clk 0:02:22.7]} 25.
Nxh3 {[%clk 0:01:51.9]} 25... Rag8 {[%clk 0:02:09.1]} 26. Ng5 {[%clk 0:01:49.6]}
26... Nf8 {[%clk 0:02:08.6]} 27. Kf2 {[%clk 0:01:41.3]} 27... Rh2 {[%clk
0:02:06.4]} 28. Rh1 {[%clk 0:01:41.1]} 28... Rgh8 {[%clk 0:02:05.6]} 29. Ree1
{[%clk 0:01:38.2]} 29... Rxh1 {[%clk 0:02:04.4]} 30. Rxh1 {[%clk 0:01:37.9]}
30... Rxh1 {[%clk 0:02:04.5]} 31. Bxh1 {[%clk 0:01:38.2]} 31... Qh6 {[%clk
0:02:04.1]} 32. Bg2 {[%clk 0:01:37.7]} 32... Nh7 {[%clk 0:02:02.2]} 33. Nxh7
{[%clk 0:01:28.5]} 33... Kxh7 {[%clk 0:02:02.3]} 34. Qe3 {[%clk 0:01:28.8]}
34... Qf6 {[%clk 0:02:01.6]} 35. a4 {[%clk 0:01:28.4]} 35... a6 {[%clk 0:01:58]}
36. Bf1 {[%clk 0:01:26.1]} 36... Be8 {[%clk 0:01:57.6]} 37. Be2 {[%clk
0:01:11.4]} 37... Kg7 {[%clk 0:01:56]} 38. Ke1 {[%clk 0:01:11.4]} 38... Kf7
{[%clk 0:01:55.9]} 39. Kd2 {[%clk 0:01:11.7]} 39... Ke7 {[%clk 0:01:56.1]} 40.
Qe5 {[%clk 0:01:02.3]} 40... Qxe5 {[%clk 0:01:56]} 41. fxe5 {[%clk 0:01:02.7]}
41... Kf7 {[%clk 0:01:51.1]} 42. Ke3 {[%clk 0:00:52.3]} 42... Kg6 {[%clk
0:01:48.3]} 43. Kf4 {[%clk 0:00:52.8]} 43... Bd7 {[%clk 0:01:47.4]} 44. Bd3
{[%clk 0:00:46.7]} 44... Kh5 {[%clk 0:01:44.8]} 45. Bc2 {[%clk 0:00:41.1]} 45...
Be8 {[%clk 0:01:37.1]} 46. Bxf5 {[%clk 0:00:37.5]} 46... exf5 {[%clk 0:01:17.5]}
47. Kxf5 {[%clk 0:00:37.9]} 47... Kh6 {[%clk 0:00:54]} 48. Kf6 {[%clk
0:00:38.1]} 48... Kh5 {[%clk 0:00:54.2]} 49. Ke7 {[%clk 0:00:33.2]} 49... Bg6
{[%clk 0:00:54.1]} 50. Kd8 {[%clk 0:00:32.4]} 50... Kg4 {[%clk 0:00:54.4]} 51.
Kc7 {[%clk 0:00:31.3]} 51... Kxg3 {[%clk 0:00:54.9]} 52. Kxb7 {[%clk 0:00:31.5]}
52... Kf4 {[%clk 0:00:55.4]} 53. Kxa6 {[%clk 0:00:26.9]} 53... Ke4 {[%clk
0:00:53.6]} 54. b5 {[%clk 0:00:27.3]} 54... Kxd4 {[%clk 0:00:50.9]} 55. b6
{[%clk 0:00:25.8]} 1-0

[Event "Early-Titled-Tuesday-Blitz-March-26-2024"]
[Site "Chess.com"]
[Date "2024.03.26"]
[Round "1"]
[White "Knightmare1014"]
[Black "RandomNoob04"]
[Result "1-0"]
[WhiteElo "2335"]
[BlackElo "2630"]
[TimeControl "180+1"]
[EndTime "8:07:08 PDT"]
[Termination "Knightmare1014 won by resignation"]

1. e4 {[%clk 0:03:00.9]} 1... d5 {[%clk 0:02:58.6]} 2. exd5 {[%clk 0:03:00.6]}
2... Qxd5 {[%clk 0:02:59.5]} 3. Nc3 {[%clk 0:03:01]} 3... Qa5 {[%clk 0:03:00.1]}
4. d4 {[%clk 0:03:00.8]} 4... Nf6 {[%clk 0:03:00.6]} 5. Nf3 {[%clk 0:03:01]}
5... Bf5 {[%clk 0:02:59.4]} 6. Bc4 {[%clk 0:02:55.6]} 6... e6 {[%clk 0:02:59.6]}
7. Bd2 {[%clk 0:02:54.7]} 7... Bb4 {[%clk 0:03:00.2]} 8. Qe2 {[%clk 0:02:51.7]}
8... O-O {[%clk 0:02:48.4]} 9. Ne5 {[%clk 0:02:49.8]} 9... Nbd7 {[%clk
0:02:26.4]} 10. O-O-O {[%clk 0:02:28.9]} 10... Nb6 {[%clk 0:01:53.2]} 11. Bb3
{[%clk 0:02:26.8]} 11... Nbd5 {[%clk 0:01:52.9]} 12. Nxd5 {[%clk 0:02:17]} 12...
exd5 {[%clk 0:01:51.3]} 13. g4 {[%clk 0:02:15.5]} 13... Bxd2+ {[%clk 0:01:47.9]}
14. Rxd2 {[%clk 0:02:15.9]} 14... Bg6 {[%clk 0:01:45.9]} 15. h4 {[%clk
0:02:16.1]} 15... h5 {[%clk 0:01:42.2]} 16. Nxg6 {[%clk 0:01:55]} 16... fxg6
{[%clk 0:01:43.1]} 17. gxh5 {[%clk 0:01:55.4]} 17... gxh5 {[%clk 0:01:43.5]} 18.
Rd3 {[%clk 0:01:53.8]} 18... Rae8 {[%clk 0:01:41.6]} 19. Re3 {[%clk 0:01:44.8]}
19... Ne4 {[%clk 0:01:26.9]} 20. Rxe4 {[%clk 0:01:41.8]} 20... Rd8 {[%clk
0:01:05.5]} 21. Re5 {[%clk 0:01:39.8]} 21... c6 {[%clk 0:01:04.4]} 22. Rxh5
{[%clk 0:01:38.1]} 22... Rf6 {[%clk 0:00:56.7]} 23. Qd3 {[%clk 0:01:31.6]} 23...
Re8 {[%clk 0:00:49.8]} 24. c3 {[%clk 0:01:11.1]} 24... Qc7 {[%clk 0:00:45.3]}
25. Rg1 {[%clk 0:01:05.9]} 25... Qf4+ {[%clk 0:00:40]} 26. Kb1 {[%clk
0:01:05.3]} 26... Re4 {[%clk 0:00:38.7]} 27. Rhg5 {[%clk 0:00:55.3]} 27... Re7
{[%clk 0:00:35.3]} 28. h5 {[%clk 0:00:52.5]} 28... Qxf2 {[%clk 0:00:26.1]} 29.
a3 {[%clk 0:00:43.4]} 29... Qh2 {[%clk 0:00:15.3]} 30. Bc2 {[%clk 0:00:42]}
30... Rh6 {[%clk 0:00:10.9]} 31. Qg3 {[%clk 0:00:32.8]} 31... Qxg3 {[%clk
0:00:09.1]} 32. R1xg3 {[%clk 0:00:32.9]} 32... Kf8 {[%clk 0:00:08.3]} 33. Bg6
{[%clk 0:00:31.2]} 33... Re1+ {[%clk 0:00:06.7]} 34. Ka2 {[%clk 0:00:29.6]}
34... Rf1 {[%clk 0:00:07.6]} 35. Re3 {[%clk 0:00:26.1]} 35... Rf7 {[%clk
0:00:07.3]} 36. Bxf7 {[%clk 0:00:25.5]} 36... Kxf7 {[%clk 0:00:08.2]} 37. Rf3+
{[%clk 0:00:25.7]} 37... Rf6 {[%clk 0:00:08.3]} 38. Rxf6+ {[%clk 0:00:25.3]} 1-0

[Event "Early-Titled-Tuesday-Blitz-March-26-2024"]
[Site "Chess.com"]
[Date "2024.03.26"]
[Round "1"]
[White "LeoWin2012"]
[Black "Kunalm64"]
[Result "0-1"]
[WhiteElo "2290"]
[BlackElo "2632"]
[TimeControl "180+1"]
[EndTime "8:07:09 PDT"]
[Termination "Kunalm64 won on time"]

1. e4 {[%clk 0:03:00.9]} 1... c6 {[%clk 0:02:59.3]} 2. d4 {[%clk 0:02:59.5]}
2... d5 {[%clk 0:02:59.8]} 3. exd5 {[%clk 0:02:58.7]} 3... cxd5 {[%clk
0:03:00.1]} 4. c4 {[%clk 0:02:56]} 4... Nf6 {[%clk 0:02:59.9]} 5. Nc3 {[%clk
0:02:55.3]} 5... Nc6 {[%clk 0:02:59.9]} 6. Nf3 {[%clk 0:02:40.6]} 6... Be6
{[%clk 0:02:59.5]} 7. cxd5 {[%clk 0:02:34.4]} 7... Bxd5 {[%clk 0:02:59.2]} 8.
Be3 {[%clk 0:02:24]} 8... e6 {[%clk 0:02:58.5]} 9. Bb5 {[%clk 0:02:13]} 9... Be7
{[%clk 0:02:55.3]} 10. O-O {[%clk 0:02:08.1]} 10... O-O {[%clk 0:02:51.5]} 11.
Ne5 {[%clk 0:02:06.9]} 11... Rc8 {[%clk 0:02:22.7]} 12. Bd3 {[%clk 0:01:58.1]}
12... h6 {[%clk 0:02:08.9]} 13. Ne2 {[%clk 0:01:44.4]} 13... Be4 {[%clk
0:02:04.3]} 14. Bxe4 {[%clk 0:01:37.4]} 14... Nxe4 {[%clk 0:02:03.6]} 15. Nxc6
{[%clk 0:01:29.6]} 15... Rxc6 {[%clk 0:02:03]} 16. Qd3 {[%clk 0:01:29.8]} 16...
Nf6 {[%clk 0:01:45]} 17. Nf4 {[%clk 0:01:27.7]} 17... Nd5 {[%clk 0:01:45.2]} 18.
Rac1 {[%clk 0:01:15]} 18... Nxf4 {[%clk 0:01:43.4]} 19. Bxf4 {[%clk 0:01:14.3]}
19... Qd5 {[%clk 0:01:38.1]} 20. Rxc6 {[%clk 0:01:07]} 20... bxc6 {[%clk
0:01:37.6]} 21. Qg3 {[%clk 0:01:04.3]} 21... g5 {[%clk 0:00:57.8]} 22. Be3
{[%clk 0:00:51.3]} 22... Qxa2 {[%clk 0:00:56.1]} 23. Qc7 {[%clk 0:00:50.7]}
23... Bf6 {[%clk 0:00:54.8]} 24. Qxc6 {[%clk 0:00:47.7]} 24... Qxb2 {[%clk
0:00:52.8]} 25. d5 {[%clk 0:00:45.4]} 25... exd5 {[%clk 0:00:41.8]} 26. Qxd5
{[%clk 0:00:44.6]} 26... Rd8 {[%clk 0:00:40.2]} 27. Qa5 {[%clk 0:00:40.1]} 27...
Qe2 {[%clk 0:00:33.9]} 28. g3 {[%clk 0:00:12.8]} 28... Qf3 {[%clk 0:00:19.6]}
29. Qxa7 {[%clk 0:00:08.8]} 29... h5 {[%clk 0:00:17.8]} 30. Bb6 {[%clk
0:00:06.5]} 30... h4 {[%clk 0:00:16.6]} 0-1

[Event "Early-Titled-Tuesday-Blitz-March-26-2024"]
[Site "Chess.com"]
[Date "2024.03.26"]
[Round "1"]
[White "1mbl4"]
[Black "Zhani-Z"]
[Result "0-1"]
[WhiteElo "2575"]
[BlackElo "2211"]
[TimeControl "180+1"]
[EndTime "8:07:10 PDT"]
[Termination "Zhani-Z won by resignation"]

1. b3 {[%clk 0:02:56.7]} 1... d5 {[%clk 0:02:55.4]} 2. Bb2 {[%clk 0:02:56.6]}
2... Bf5 {[%clk 0:02:54.9]} 3. Nf3 {[%clk 0:02:55.7]} 3... e6 {[%clk 0:02:53.4]}
4. g3 {[%clk 0:02:55.5]} 4... h6 {[%clk 0:02:50.7]} 5. Bg2 {[%clk 0:02:55.6]}
5... Nf6 {[%clk 0:02:50.6]} 6. O-O {[%clk 0:02:54.7]} 6... Be7 {[%clk
0:02:49.5]} 7. d3 {[%clk 0:02:54.8]} 7... c5 {[%clk 0:02:46.7]} 8. Nbd2 {[%clk
0:02:51.8]} 8... Nc6 {[%clk 0:02:46.8]} 9. c4 {[%clk 0:02:50.3]} 9... d4 {[%clk
0:02:41.6]} 10. a3 {[%clk 0:02:44.7]} 10... O-O {[%clk 0:02:37.8]} 11. Ne1
{[%clk 0:02:36.8]} 11... e5 {[%clk 0:02:24.3]} 12. Nc2 {[%clk 0:02:36.2]} 12...
Qd7 {[%clk 0:02:23.6]} 13. Ne4 {[%clk 0:02:25.5]} 13... Nxe4 {[%clk 0:02:20.5]}
14. dxe4 {[%clk 0:02:25.2]} 14... Bh3 {[%clk 0:02:08.6]} 15. Ne1 {[%clk
0:02:18.4]} 15... Bxg2 {[%clk 0:02:07.7]} 16. Kxg2 {[%clk 0:02:13]} 16... f5
{[%clk 0:02:02]} 17. Qc2 {[%clk 0:02:09.5]} 17... Rf7 {[%clk 0:01:47.6]} 18.
exf5 {[%clk 0:02:05.3]} 18... Rxf5 {[%clk 0:01:47.2]} 19. Qe4 {[%clk 0:02:03.9]}
19... Na5 {[%clk 0:01:33.3]} 20. Nd3 {[%clk 0:01:41.4]} 20... Nxb3 {[%clk
0:01:22.2]} 21. Rad1 {[%clk 0:01:41.4]} 21... Bd6 {[%clk 0:00:55.5]} 22. Qd5+
{[%clk 0:01:18.8]} 22... Qf7 {[%clk 0:00:51.8]} 23. e4 {[%clk 0:01:14.4]} 23...
Qxd5 {[%clk 0:00:41.9]} 24. cxd5 {[%clk 0:01:03.9]} 24... Rf7 {[%clk 0:00:41.1]}
25. f4 {[%clk 0:00:59.7]} 25... Re8 {[%clk 0:00:37.3]} 26. fxe5 {[%clk
0:00:53.2]} 26... Bxe5 {[%clk 0:00:33.6]} 27. Rxf7 {[%clk 0:00:53]} 27... Kxf7
{[%clk 0:00:33.6]} 28. Rf1+ {[%clk 0:00:53.9]} 28... Kg8 {[%clk 0:00:33.2]} 29.
Rf5 {[%clk 0:00:52.9]} 29... Bc7 {[%clk 0:00:27.3]} 30. e5 {[%clk 0:00:46.2]}
30... c4 {[%clk 0:00:27.6]} 31. d6 {[%clk 0:00:44.2]} 31... cxd3 {[%clk
0:00:27.7]} 32. dxc7 {[%clk 0:00:43]} 32... Rc8 {[%clk 0:00:28.3]} 33. Rf3
{[%clk 0:00:33.5]} 33... Rxc7 {[%clk 0:00:28.5]} 34. Rxd3 {[%clk 0:00:27.9]}
34... Rc2+ {[%clk 0:00:28.3]} 35. Kf3 {[%clk 0:00:27.8]} 35... Rxb2 {[%clk
0:00:28.6]} 36. Kf4 {[%clk 0:00:27.9]} 36... Kf7 {[%clk 0:00:29]} 37. h4 {[%clk
0:00:26.5]} 37... Ke6 {[%clk 0:00:29.2]} 38. h5 {[%clk 0:00:25.6]} 38... Rc2
{[%clk 0:00:29.3]} 39. Rd1 {[%clk 0:00:24.1]} 39... Rc3 {[%clk 0:00:28.8]} 40.
Rb1 {[%clk 0:00:23.3]} 40... d3 {[%clk 0:00:29]} 41. Rd1 {[%clk 0:00:22.6]}
41... d2 {[%clk 0:00:29.4]} 42. Ke4 {[%clk 0:00:22.8]} 42... Rc1 {[%clk
0:00:29.8]} 43. Rxd2 {[%clk 0:00:22.5]} 43... Nxd2+ {[%clk 0:00:29.9]} 0-1